bitfinex-derivatives/quotes_ETHF0:USTF0_20250624
["timestamp","ask_amount","ask_price","bid_price","bid_amount"]
[1750748827679,2.6909,2428.7,2428.5,3.2078]
[1750748827879,7.78405954,2429.3,2428.5,3.2078]
[1750748828073,0.7007,2428.9,2428.5,3.2078]
[1750748828277,0.6852,2428.8,2428.7,0.82295]
[1750748828477,2.0086,2428.8,2428.6,0.82296]
[1750748828872,2.83152,2428.8,2428.6,0.82298]
[1750748829077,2.83152,2428.8,2428.5,0.823]
[1750748829274,0.82302,2428.5,2428.2,4.42684151]
[1750748829474,6.72265954,2428.4,2428.1,0.82314]
[1750748829774,6.72265954,2428.4,2428.1,3.2078]
[1750748829974,0.7007,2428.4,2428.3,0.82309]
[1750748830180,0.7007,2428.4,2428.2,0.82311]
[1750748830381,1.4457,2428.3,2428.1,3.2078]
[1750748830979,1.4457,2428.3,2428.2,0.82312]
[1750748831682,0.7007,2428.4,2428.3,0.82309]
[1750748832777,1.3671,2428.6,2428.5,0.82302]
[1750748833176,0.82307,2428.4,2428.1,0.82315]
[1750748833377,5.94335954,2428.3,2428.1,0.82315]
[1750748833577,6.61425954,2428.3,2428.2,0.82312]
[1750748833777,6.61425954,2428.3,2428.0,1.21904151]
[1750748833979,0.678,2428.2,2427.9,1.21904151]
[1750748834278,1.3671,2428.1,2428.0,0.82319]
[1750748836389,2.19027,2428.1,2427.8,4.42684151]
[1750748836586,0.82322,2427.9,2427.8,3.2078]
[1750748836893,0.82322,2427.9,2427.7,0.82326]
[1750748837082,2.0316,2427.8,2427.7,0.82326]
[1750748837474,2.0316,2427.8,2427.7,4.03106]
[1750748837782,2.0316,2427.8,2427.7,0.82326]
[1750748838181,2.0316,2427.8,2427.6,0.82331]
[1750748838792,2.0316,2427.8,2427.7,0.82329]
[1750748840189,2.0316,2427.8,2427.6,0.8233]
[1750748840391,0.82332,2427.7,2427.4,4.03118]
[1750748840693,2.1645,2427.6,2427.5,0.82336]
[1750748840887,0.66,2427.8,2427.7,0.82329]
[1750748841089,2.0333,2427.8,2427.7,0.82329]
[1750748841692,2.85657,2427.8,2427.6,0.8233]
[1750748841994,2.85657,2427.8,2427.4,3.2078]
[1750748841995,0.8233,2427.7,2427.5,0.82334]
[1750748842290,2.0927,2427.6,2427.5,0.82334]
[1750748844394,2.0927,2427.6,2427.4,3.2078]
[1750748844395,0.82336,2427.5,2427.4,3.2078]
[1750748844690,2.25467,2427.5,2427.3,0.82342]
[1750748844895,0.6771,2427.4,2427.3,0.82342]
[1750748845196,2.1084,2427.4,2427.3,0.82342]
[1750748846090,12.11665954,2427.6,2427.5,0.82336]
[1750748846394,12.93998954,2427.6,2427.4,0.82336]
[1750748846695,2.1303,2427.5,2427.4,0.82336]
[1750748847686,0.7194,2427.6,2427.5,0.82336]
[1750748847891,3.2078,2427.7,2427.6,0.82332]
[1750748848388,4.5184,2427.7,2427.6,0.82332]
[1750748849699,3.2078,2427.7,2427.6,0.82332]
[1750748850083,4.5872,2427.7,2427.6,0.82332]
[1750748850493,5.41049,2427.7,2427.5,0.82334]
[1750748850699,5.41051,2427.7,2427.4,0.82337]
[1750748851097,0.82332,2427.6,2427.4,0.82337]
[1750748851296,1.3794,2427.5,2427.4,0.82337]
[1750748852104,1.3794,2427.5,2427.2,0.7189]
[1750748852304,1.3794,2427.5,2427.4,0.82339]
[1750748853100,1.3794,2427.5,2427.0,3.9006]
[1750748853307,1.5201,2427.4,2427.2,0.82344]
[1750748853505,1.4004,2427.3,2427.2,0.82344]
[1750748854406,2.1221,2427.3,2427.2,0.82344]
[1750748855002,2.1221,2427.3,2427.0,3.2078]
[1750748855203,2.1221,2427.3,2426.9,0.7072]
[1750748855204,16.72815954,2427.3,2426.7,3.2078]
[1750748855411,4.57625954,2427.0,2426.9,0.82356]
[1750748855603,5.39974954,2427.2,2426.9,0.82356]
[1750748855799,1.4004,2427.1,2426.9,0.82356]
[1750748856006,2.22389,2427.1,2426.9,0.82356]
[1750748856202,10.7515,2427.3,2426.7,3.2078]
[1750748856505,4.57625954,2427.2,2426.9,0.82354]
[1750748856713,6.82564954,2427.2,2426.9,0.82354]
[1750748857203,6.82564954,2427.2,2426.7,3.2078]
[1750748857204,6.00215954,2427.2,2426.7,3.2078]
[1750748857409,6.00215954,2427.2,2426.7,4.03141]
[1750748857410,4.57625954,2426.9,2426.7,4.03141]
[1750748857603,2.107,2426.8,2426.7,4.03143]
[1750748858012,0.6811,2426.8,2426.7,4.03143]
[1750748858911,0.6811,2426.8,2426.7,0.82363]
[1750748860109,0.6811,2426.8,2426.7,0.87991865]
[1750748860813,1.50469,2426.8,2426.7,0.05628865]
[1750748861110,2.94409,2426.8,2426.7,0.05628865]
[1750748861911,0.82373,2426.4,2426.2,0.82377]
[1750748862212,0.82374,2426.4,2426.2,0.82378]
[1750748862403,1.4051,2426.3,2426.2,0.82378]
[1750748862910,0.82387,2426.0,2425.8,3.2078]
[1750748863104,0.82394,2425.8,2425.5,1.93009031]
[1750748863412,2.89752,2425.9,2425.6,0.82399]
[1750748863611,0.82404,2425.5,2425.3,1.22219031]
[1750748863818,0.82411,2425.3,2425.0,1.53209]
[1750748864014,4.57625954,2425.1,2424.7,1.54920469]
[1750748864206,4.57625954,2425.1,2424.5,4.83318868]
[1750748864207,4.57625954,2424.8,2424.5,4.03217]
[1750748864404,4.57625954,2424.8,2424.5,3.2078]
[1750748864607,6.824,2424.9,2424.5,3.2078]
[1750748864815,8.2291,2424.9,2424.5,3.2078]
[1750748865014,6.824,2425.0,2424.5,3.2078]
[1750748865311,6.824,2425.0,2424.9,0.82424]
[1750748865719,3.2078,2425.1,2424.9,0.82424]
[1750748865910,3.2078,2425.1,2425.0,0.82421]
[1750748866402,3.2078,2425.1,2425.0,1.53901]
[1750748866606,1.3969,2425.7,2425.6,0.824]
[1750748866811,6.789,2425.8,2425.7,0.82397]
[1750748867011,6.789,2425.8,2425.7,4.03177]
[1750748867818,8.9074,2426.1,2425.9,0.82389]
[1750748868119,8.9074,2426.1,2425.9,0.8876415]
[1750748868314,8.9074,2426.1,2426.0,0.82387]
[1750748869216,8.9074,2426.1,2425.9,0.0637515]
[1750748869217,7.5105,2426.1,2425.9,0.82388]
[1750748869605,7.5105,2426.1,2426.0,0.82387]
[1750748870005,8.8712,2426.1,2426.0,0.82387]
[1750748870818,8.8712,2426.1,2425.9,0.82388]
[1750748871004,8.8712,2426.1,2426.0,4.03167]
[1750748874516,7.5105,2426.1,2426.0,4.03167]
[1750748875721,6.789,2426.1,2426.0,4.03167]
[1750748875922,8.1306,2426.4,2426.3,0.82376]
[1750748876123,8.1306,2426.4,2426.3,4.03156]
[1750748876124,6.789,2426.4,2426.3,4.03156]
[1750748876622,2.0069,2426.7,2426.3,4.03156]
[1750748876623,2.0069,2426.7,2426.3,3.2078]
[1750748876824,1.48893,2426.7,2426.6,3.2078]
[1750748877025,0.6653,2426.7,2426.6,0.82366]
[1750748877524,2.0069,2426.7,2426.6,0.82366]
[1750748879127,2.0069,2426.7,2426.5,0.82368]
[1750748879326,7.40679954,2426.7,2426.5,0.82368]
[1750748879624,6.58315954,2426.7,2426.5,0.82368]
[1750748880133,7.40678954,2426.7,2426.5,0.82368]
[1750748880429,0.82369,2426.6,2426.4,0.82373]
[1750748880621,1.3871,2426.5,2426.4,0.82373]
[1750748881123,1.3871,2426.5,2426.3,0.82375]
[1750748881330,1.3871,2426.5,2426.3,3.2078]
[1750748881529,5.39998954,2426.4,2426.3,3.2078]
[1750748881921,5.39998954,2426.4,2426.0,3.2078]
[1750748881922,0.82381,2426.2,2426.0,3.2078]
[1750748882122,4.57625954,2426.1,2426.0,3.2078]
[1750748882423,6.75668954,2426.1,2426.0,3.2078]
[1750748882726,0.82393,2425.9,2425.7,3.2078]
[1750748882929,0.82402,2425.6,2425.4,3.2078]
[1750748883136,5.93285954,2425.5,2425.1,4.03196]
[1750748883430,6.75691954,2425.5,2425.1,3.2078]
[1750748883627,0.82407,2425.4,2425.1,4.03195]
[1750748883829,1.4184,2425.3,2425.1,4.03195]
[1750748884030,2.0985,2425.3,2425.2,0.82414]
[1750748884234,2.0985,2425.3,2425.1,3.2078]
[1750748884430,2.0985,2425.3,2425.1,4.03196]
[1750748885523,2.0985,2425.3,2425.2,0.82414]
[1750748885832,2.0985,2425.3,2425.1,4.03195]
[1750748887332,6.79,2425.2,2425.1,3.2078]
[1750748887537,12.71955954,2425.2,2424.9,0.82424]
[1750748887733,12.71955954,2425.2,2424.8,3.2078]
[1750748887734,12.71955954,2425.2,2425.0,0.82421]
[1750748888429,1.3533,2425.2,2425.1,0.82417]
[1750748889227,1.3533,2425.2,2424.8,3.2078]
[1750748889228,2.17744,2425.2,2424.9,0.82421]
[1750748889628,3.2078,2425.7,2424.9,0.82421]
[1750748889629,0.07177219,2426.0,2425.2,2.06035]
[1750748889823,39.1,2426.3,2425.2,2.06035]
[1750748889824,6.79,2426.1,2425.9,3.2078]
[1750748890026,5.99515954,2426.0,2425.9,3.2078]
[1750748890330,5.99515954,2426.0,2425.9,4.0317]
[1750748890628,1.4189,2426.0,2425.9,3.2078]
[1750748891026,2.24277,2426.0,2425.9,3.2078]
[1750748891227,34.69377,2426.0,2425.7,0.82395]
[1750748891426,5.40015954,2425.9,2425.6,3.2078]
[1750748891727,0.82397,2425.7,2425.6,3.2078]
[1750748892230,1.51447,2425.7,2425.6,3.2078]
[1750748892937,0.6905,2425.7,2425.6,3.2078]
[1750748893127,33.1525,2425.7,2425.6,4.0318]
[1750748893435,0.6905,2425.7,2425.6,4.0318]
[1750748893637,7.4815,2425.7,2425.6,4.0318]
[1750748894037,8.7897,2425.7,2425.6,4.0318]
[1750748894239,8.7897,2425.7,2425.6,3.2078]
[1750748894538,9.61367,2425.7,2425.6,3.2078]
[1750748896843,1.9987,2425.7,2425.6,3.2078]
[1750748897041,34.4367,2425.7,2425.6,4.0318]
[1750748897435,34.4367,2425.7,2425.6,3.2078]
[1750748897941,34.4367,2425.7,2425.6,4.0318]
[1750748898242,34.4367,2425.7,2425.6,3.2078]
[1750748898444,35.26067,2425.7,2425.6,3.2078]
[1750748898843,34.4367,2425.7,2425.6,3.2078]
[1750748899236,35.26067,2425.7,2425.6,3.2078]
[1750748899841,34.4367,2425.7,2425.3,0.82408]
[1750748900044,4.57625954,2425.5,2425.4,0.82407]
[1750748900347,4.57625954,2425.5,2425.3,0.82408]
[1750748900643,25.636,2425.4,2425.3,0.82408]
[1750748901037,27.0517,2425.4,2425.3,0.82408]
[1750748901340,27.0517,2425.4,2425.2,4.03191]
[1750748901537,27.0517,2425.4,2425.3,0.8241]
[1750748902343,33.1115,2425.7,2425.6,0.824]
[1750748902544,32.412,2425.7,2425.6,0.8877515]
[1750748903043,32.412,2425.7,2425.6,0.0637515]
[1750748903431,35.35737,2425.7,2425.6,0.0637515]
[1750748903638,34.5334,2425.7,2425.6,0.8877515]
[1750748903844,32.412,2425.7,2425.6,0.8877515]
[1750748904242,32.412,2425.7,2425.6,0.0637515]
[1750748904432,32.412,2425.7,2425.6,0.8877515]
[1750748904636,32.412,2425.7,2425.6,0.824]
[1750748905440,33.8216,2425.7,2425.5,0.82402]
[1750748905741,34.64557,2425.7,2425.3,0.6779]
[1750748905943,33.8216,2425.7,2425.5,0.82402]
[1750748906553,34.64557,2425.7,2425.5,0.82402]
[1750748906746,33.8216,2425.7,2425.5,0.82402]
[1750748906942,34.64557,2425.7,2425.5,0.82402]
[1750748907649,34.64557,2425.7,2425.6,0.0637515]
[1750748908451,25.587,2425.8,2425.6,0.0637515]
[1750748908642,25.587,2425.8,2425.7,0.82395]
[1750748908843,25.587,2425.8,2425.5,3.2078]
[1750748909148,25.587,2425.8,2425.5,0.82402]
[1750748909149,0.82398,2425.7,2425.5,0.82402]
[1750748909355,26.9653,2425.6,2425.5,0.82402]
[1750748909547,26.9653,2425.6,2425.4,2.04624031]
[1750748909853,26.9653,2425.6,2425.5,0.82404]
[1750748910448,0.82404,2425.5,2425.4,1.22219031]
[1750748910754,9.65234,2425.5,2425.3,0.8241]
[1750748911052,26.40307,2425.4,2425.2,5.25411031]
[1750748911247,27.77217,2425.4,2425.2,5.25411031]
[1750748911548,27.77217,2425.4,2425.3,1.22219031]
[1750748911752,27.77217,2425.4,2425.2,5.25411031]
[1750748912145,25.579,2425.4,2425.3,0.8241]
[1750748912447,25.579,2425.4,2425.3,1.22219031]
[1750748912752,27.77217,2425.4,2425.3,1.22219031]
[1750748912959,26.9481,2425.4,2425.3,2.04629031]
[1750748913158,26.9481,2425.4,2425.3,1.22219031]
[1750748913159,27.77217,2425.4,2425.3,1.22219031]
[1750748913348,26.9481,2425.4,2425.3,1.22219031]
[1750748913548,26.9481,2425.4,2425.3,2.04629031]
[1750748913758,26.9481,2425.4,2425.3,1.22219031]
[1750748913959,0.82414,2425.2,2425.1,1.22219031]
[1750748914163,26.38914,2425.2,2425.0,1.22219031]
[1750748914350,1.4376,2425.1,2425.0,1.22219031]
[1750748914660,1.4376,2425.1,2425.0,2.04640031]
[1750748914857,25.565,2425.2,2425.1,0.82417]
[1750748915057,10.6588,2425.5,2425.1,1.22219031]
[1750748915256,25.56,2425.4,2425.3,0.8241]
[1750748915560,26.38407,2425.4,2425.2,5.96061031]
[1750748916264,6.60825954,2425.6,2425.2,5.13649031]
[1750748916265,1.3448,2425.6,2425.2,5.13649031]
[1750748916562,32.356,2425.5,2425.4,0.82405]
[1750748917062,32.356,2425.5,2425.3,0.6562]
[1750748917063,1.3448,2425.6,2425.5,0.82404]
[1750748917759,1.3448,2425.6,2425.5,4.0955915]
[1750748917959,1.1641,2425.9,2425.8,0.82393]
[1750748918154,1.988,2425.9,2425.7,2.05296476]
[1750748918355,1.98802,2425.9,2425.7,1.22901476]
[1750748918553,3.29872,2425.9,2425.6,2.73579476]
[1750748918760,4.00642,2425.9,2425.6,2.73579476]
[1750748919063,0.82397,2425.7,2425.6,1.22901476]
[1750748919262,0.82397,2425.7,2425.5,2.05302476]
[1750748919461,0.82397,2425.7,2425.6,1.22901476]
[1750748919664,0.824,2425.6,2425.5,1.22901476]
[1750748919862,0.82414,2425.2,2425.1,1.22901476]
[1750748920160,30.98039954,2425.2,2425.0,1.22901476]
[1750748920364,0.6666,2425.1,2425.0,1.22901476]
[1750748920757,0.6666,2425.1,2425.0,2.05322476]
[1750748921057,0.6666,2425.1,2425.0,1.22901476]
[1750748921864,0.6666,2425.1,2425.0,2.05322476]
[1750748922064,0.6666,2425.1,2425.0,1.22901476]
[1750748922562,0.6666,2425.1,2425.0,2.05322476]
[1750748923262,0.6666,2425.1,2425.0,1.22901476]
[1750748923458,25.58,2425.2,2425.1,0.82417]
[1750748923666,25.562,2425.3,2425.1,4.43681476]
[1750748923857,25.562,2425.3,2425.2,2.05315476]
[1750748924057,25.562,2425.3,2425.2,2.72295476]
[1750748924358,25.562,2425.3,2425.2,1.22901476]
[1750748924557,25.562,2425.3,2425.1,5.26096476]
[1750748924758,25.562,2425.3,2425.1,2.05316476]
[1750748925061,26.3861,2425.3,2425.1,1.22901476]
[1750748925261,0.82414,2425.2,2425.1,1.22901476]
[1750748925460,0.82414,2425.2,2425.0,1.22901476]
[1750748925762,0.82414,2425.2,2425.1,0.05628826]
[1750748927966,28.7698,2425.3,2425.1,0.05628826]
[1750748928159,28.7688,2425.3,2425.1,0.05628826]
[1750748928562,29.59292,2425.3,2425.2,0.05628826]
[1750748928866,26.38512,2425.3,2425.2,0.05628826]
[1750748929363,25.561,2425.3,2425.2,0.05628826]
[1750748929566,26.3851,2425.3,2425.2,0.05628826]
[1750748929765,25.561,2425.3,2425.2,0.05628826]
[1750748930153,26.3851,2425.3,2425.2,0.05628826]
[1750748931269,25.561,2425.3,2425.2,0.05628826]
[1750748932169,26.3851,2425.3,2425.2,0.05628826]
[1750748933571,29.5929,2425.3,2425.2,0.05628826]
[1750748934168,30.9655,2425.3,2425.2,0.05628826]
[1750748935767,1.85476,2425.5,2425.2,0.05628826]
[1750748936065,1.0307,2425.5,2425.4,0.82407]
[1750748936268,1.0307,2425.5,2425.4,2.05308278]
[1750748936658,1.0307,2425.5,2425.4,2.10937104]
[1750748938572,1.85474,2425.5,2425.4,1.28530104]
[1750748938769,1.85474,2425.5,2425.4,0.05628826]
[1750748938770,28.82424,2425.5,2425.4,0.05628826]
[1750748940268,28.0002,2425.5,2425.4,0.88035826]
[1750748940574,28.82424,2425.5,2425.4,0.05628826]
[1750748942565,28.0002,2425.5,2425.4,0.05628826]
[1750748942968,28.82424,2425.5,2425.4,0.05628826]
[1750748943267,28.0002,2425.5,2425.4,0.88035826]
[1750748943571,28.0002,2425.5,2425.4,0.05628826]
[1750748943769,28.82424,2425.5,2425.4,0.05628826]
[1750748944476,32.03204,2425.5,2425.4,0.05628826]
[1750748946069,31.00134,2425.5,2425.4,0.05628826]
[1750748946264,30.1773,2425.5,2425.4,0.05628826]
[1750748946467,31.00134,2425.5,2425.4,0.05628826]
[1750748949780,30.1733,2425.5,2425.4,0.88035826]
[1750748950780,30.99734,2425.5,2425.4,0.88035826]
[1750748951474,30.1733,2425.5,2425.4,0.88035826]
[1750748951680,28.7628,2425.5,2425.4,0.88035826]
[1750748951876,26.7184,2425.6,2425.5,0.82404]
[1750748952079,1.1634,2425.6,2425.5,2.05305278]
[1750748952575,1.1634,2425.6,2425.4,5.32461428]
[1750748952777,0.76775174,2425.5,2425.4,0.0637515]
[1750748952973,0.6818,2425.5,2425.4,0.8878215]
[1750748953274,2.0399,2425.5,2425.4,2.11683428]
[1750748953473,26.7184,2425.6,2425.5,0.82404]
[1750748954077,27.5424,2425.6,2425.5,0.82404]
[1750748954380,28.86922,2425.6,2425.5,0.82404]
[1750748954774,0.82407,2425.4,2425.3,2.05310278]
[1750748954977,37.68632954,2425.4,2425.3,1.22901278]
[1750748955168,36.86225954,2425.4,2425.1,1.22901278]
[1750748955374,0.82414,2425.2,2425.1,1.22901278]
[1750748955574,26.37814,2425.2,2425.1,1.22901278]
[1750748955880,27.70494,2425.2,2425.1,1.22901278]
[1750748956183,0.82421,2425.0,2424.9,1.22901278]
[1750748956483,0.82427,2424.8,2424.7,1.22901278]
[1750748956682,0.82431,2424.7,2424.6,1.22901278]
[1750748956878,0.82434,2424.6,2424.5,1.22901278]
[1750748957080,26.37734,2424.6,2424.4,2.05341278]
[1750748957383,26.9994,2424.6,2424.4,2.05340278]
[1750748957580,0.82441,2424.4,2424.3,1.22901278]
[1750748957882,26.37841,2424.4,2424.3,1.22901278]
[1750748958190,25.554,2424.4,2424.2,4.43681278]
[1750748958390,0.82444,2424.3,2424.2,1.22901278]
[1750748958691,2.27084,2424.3,2424.2,1.22901278]
[1750748958983,2.27084,2424.3,2424.0,0.7238]
[1750748958984,1.4464,2424.3,2424.0,1.95281278]
[1750748959185,1.4464,2424.3,2423.9,1.63868635]
[1750748959186,4.57625954,2424.1,2423.8,1.22901278]
[1750748959376,27.82696,2424.0,2423.7,1.22901278]
[1750748959582,27.0024,2424.0,2423.8,0.8246]
[1750748959982,27.0024,2424.0,2423.9,0.82458]
[1750748960181,27.0024,2424.0,2423.8,0.82459]
[1750748960382,27.82695,2424.0,2423.8,0.82459]
[1750748960573,27.82695,2424.0,2423.6,1.90581278]
[1750748960574,0.82459,2423.9,2423.7,0.82463]
[1750748960982,2.23549,2423.9,2423.6,1.50146]
[1750748961188,2.2355,2423.9,2423.7,0.82464]
[1750748961487,1.4109,2423.9,2423.6,0.6768]
[1750748961684,26.2648,2424.0,2423.6,0.6768]
[1750748961882,0.82459,2423.9,2423.7,0.82463]
[1750748962080,2.23549,2423.9,2423.7,0.82463]
[1750748962282,1.4109,2423.9,2423.7,0.82463]
[1750748962483,27.08937,2424.0,2423.8,0.82461]
[1750748962679,26.2648,2424.0,2423.8,0.82461]
[1750748962880,25.556,2424.0,2423.9,0.82458]
[1750748963081,6.731,2424.1,2424.0,0.82454]
[1750748963282,0.82456,2424.0,2423.8,0.82459]
[1750748963586,38.18165954,2424.1,2423.6,0.6768]
[1750748963787,0.82461,2423.9,2423.7,0.82464]
[1750748964084,0.82468,2423.6,2423.5,3.2078]
[1750748964875,1.49467,2423.7,2423.5,3.2078]
[1750748965075,1.49465,2423.7,2423.5,4.0325]
[1750748965284,0.82468,2423.6,2423.5,3.2078]
[1750748965483,0.82478,2423.4,2423.1,3.2078]
[1750748965690,0.82478,2423.4,2423.2,0.82479]
[1750748965986,25.558,2423.6,2423.5,0.82469]
[1750748966190,25.561,2423.7,2423.6,0.82468]
[1750748966778,7.55662,2423.8,2423.5,3.2078]
[1750748966986,0.82466,2423.7,2423.5,3.2078]
[1750748967191,6.732,2423.8,2423.5,3.2078]
[1750748967192,27.75143,2423.8,2423.6,0.82466]
[1750748967383,27.75143,2423.8,2423.7,0.82465]
[1750748967584,26.9268,2423.8,2423.7,0.82465]
[1750748968088,1.3658,2423.8,2423.6,0.82466]
[1750748968291,26.9278,2423.8,2423.7,0.82465]
[1750748968486,25.562,2423.8,2423.7,0.82465]
[1750748968687,26.38661,2423.8,2423.6,0.82466]
[1750748968893,25.562,2423.8,2423.7,0.82465]
[1750748969587,25.562,2423.9,2423.8,0.82461]
[1750748969793,1.3658,2424.3,2423.9,0.82457]
[1750748969989,1.3658,2424.3,2423.9,0.668]
[1750748970193,0.82454,2424.1,2423.9,1.49255]
[1750748970393,0.82448,2424.2,2423.9,0.668]
[1750748970594,1.3658,2424.3,2423.9,0.668]
[1750748970795,0.82452,2424.1,2424.0,0.82454]
[1750748971393,0.8245,2424.2,2424.0,0.82454]
[1750748971588,2.2387,2424.2,2424.0,0.82454]
[1750748971795,3.2078,2424.3,2424.2,0.82448]
[1750748972295,26.38644,2424.4,2424.2,0.82445]
[1750748972493,25.562,2424.4,2424.1,0.82449]
[1750748972796,0.8245,2424.2,2424.1,0.82451]
[1750748974296,2.20566,2424.3,2424.2,0.82448]
[1750748974799,0.82448,2424.2,2424.1,0.82449]
[1750748974998,0.82448,2424.2,2424.0,0.82453]
[1750748975295,2.20567,2424.3,2424.2,0.82448]
[1750748975492,0.82447,2424.3,2424.1,0.82449]
[1750748975693,30.13825954,2424.4,2424.1,0.82449]
[1750748975900,0.82448,2424.2,2424.1,0.82449]
[1750748976698,0.82449,2424.2,2424.1,0.8245]
[1750748976898,2.27606,2424.3,2424.2,0.82448]
[1750748977397,1.4516,2424.3,2423.9,3.9395515]
[1750748977597,1.4516,2424.3,2424.2,0.82448]
[1750748977999,0.82445,2424.3,2424.2,0.82446]
[1750748978398,30.96268954,2424.4,2424.3,0.82444]
[1750748978598,0.82445,2424.3,2424.2,0.82445]
[1750748978799,26.38642,2424.4,2424.3,0.82444]
[1750748979098,25.562,2424.4,2424.3,0.82444]
[1750748979296,1.365,2424.5,2424.4,0.82441]
[1750748979496,0.7017,2424.5,2424.4,0.82441]
[1750748979891,0.82443,2424.4,2424.3,0.82444]
[1750748980501,1.52611,2424.5,2424.3,0.82444]
[1750748980703,0.82441,2424.4,2424.1,0.6534]
[1750748981000,0.82441,2424.4,2424.3,0.82443]
[1750748981302,0.82441,2424.4,2424.2,0.82445]
[1750748981998,0.82444,2424.3,2424.2,0.82445]
[1750748982796,0.82447,2424.3,2424.1,0.82448]
[1750748983001,0.82447,2424.3,2424.2,0.82448]
[1750748983202,6.80407954,2424.4,2424.3,0.82444]
[1750748983502,5.40067954,2424.4,2424.3,0.82444]
[1750748983698,5.40067954,2424.4,2423.9,7.22568266]
[1750748983699,0.82445,2424.3,2424.2,0.82446]
[1750748984290,5.40068954,2424.4,2424.3,0.82444]
[1750748984795,0.82442,2424.4,2424.3,0.82442]
[1750748985299,1.5261,2424.5,2424.4,0.82441]
[1750748985904,0.7017,2424.5,2424.4,0.82441]
[1750748986404,3.12657445,2424.5,2424.4,0.82441]
[1750748986904,3.95097445,2424.5,2424.3,0.82442]
[1750748987203,0.82441,2424.4,2424.3,0.82442]
[1750748988202,3.95097445,2424.5,2424.4,0.82441]
[1750748988402,0.82442,2424.4,2424.3,0.82443]
[1750748988604,3.24929445,2424.4,2424.3,0.82443]
[1750748989005,0.82444,2424.3,2424.2,2.04915116]
[1750748989308,4.62460445,2424.4,2424.3,0.82444]
[1750748990201,5.78790445,2424.4,2424.3,0.82444]
[1750748990897,0.82445,2424.3,2424.2,0.82446]
[1750748991308,0.82448,2424.2,2424.1,1.22470116]
[1750748991598,4.58405445,2424.2,2424.1,0.82451]
[1750748992507,3.75957445,2424.2,2424.1,0.82451]
[1750748993505,2.42487445,2424.2,2424.1,0.82451]
[1750748993702,2.42487445,2424.2,2424.1,2.04921116]
[1750748994807,3.24935445,2424.2,2424.1,2.04921116]
[1750748995713,4.62525445,2424.2,2424.1,2.04921116]
[1750748995906,2.42487445,2424.2,2424.1,2.04921116]
[1750748996209,2.42487445,2424.2,2424.1,0.82451]
[1750748996509,2.42487445,2424.2,2424.1,2.05685056]
[1750748996708,2.42487445,2424.2,2424.1,0.82451]
[1750748996910,3.24935445,2424.2,2424.1,2.05709755]
[1750748997706,3.24935445,2424.2,2424.1,0.82451]
[1750748998009,3.24935445,2424.2,2424.1,2.05710465]
[1750748998605,4.69115445,2424.2,2424.1,0.82451]
[1750748999811,4.69115445,2424.2,2424.1,2.46319635]
[1750749000217,3.86667445,2424.2,2424.1,2.46319635]
[1750749000801,4.69115445,2424.2,2424.1,2.46319635]
[1750749001014,3.86667445,2424.2,2424.1,2.46319635]
[1750749001914,4.69115445,2424.2,2424.1,2.46319635]
[1750749002212,2.0613,2424.1,2423.8,1.23374235]
[1750749002409,3.24945445,2423.9,2423.8,1.23374235]
[1750749002610,0.82461,2423.8,2423.7,1.23374235]
[1750749002811,0.82465,2423.7,2423.6,1.23374235]
[1750749003014,6.45732445,2423.7,2423.6,1.23374235]
[1750749003406,6.45732445,2423.7,2423.4,1.23374235]
[1750749003407,0.82472,2423.5,2423.4,1.23374235]
[1750749003609,0.82475,2423.4,2423.3,1.23374235]
[1750749003809,0.82478,2423.3,2423.2,1.23374235]
[1750749004122,14.41087445,2423.4,2423.0,1.23374235]
[1750749004306,0.82489,2423.0,2422.9,1.23374235]
[1750749004814,2.19189,2423.0,2422.9,1.23374235]
[1750749005008,1.367,2423.0,2422.9,2.05866235]
[1750749005209,2.19189,2423.0,2422.9,1.23374235]
[1750749005711,2.19189,2423.0,2422.8,2.05867235]
[1750749006307,0.82492,2422.9,2422.7,2.05870235]
[1750749006506,0.82492,2422.9,2422.7,0.82496]
[1750749006707,0.82492,2422.9,2422.7,2.05872235]
[1750749007307,0.82495,2422.8,2422.7,1.23374235]
[1750749007507,2.42487445,2422.8,2422.5,1.23374235]
[1750749007710,2.42487445,2422.6,2422.4,1.23374235]
[1750749008017,1.4075,2422.5,2422.3,0.7223]
[1750749008216,0.82516,2422.3,2422.0,9.50725235]
[1750749008421,3.25004445,2422.2,2422.0,2.77925235]
[1750749008614,2.42487445,2422.2,2422.0,0.7203]
[1750749008816,2.42487445,2422.2,2422.0,1.5455]
[1750749009011,3.83547445,2422.2,2422.0,1.5455]
[1750749009320,3.83547445,2422.2,2422.1,0.82519]
[1750749009615,3.24991445,2422.6,2422.4,0.82508]
[1750749010118,0.82507,2422.5,2422.3,4.0329]
[1750749010718,3.62341,2422.7,2422.0,5.3196]
[1750749010917,2.1289,2422.7,2422.5,3.2078]
[1750749011114,2.9539,2422.7,2422.5,0.82504]
[1750749011313,2.1289,2422.7,2422.4,0.82507]
[1750749011513,2.9539,2422.7,2422.5,0.82506]
[1750749011825,2.1289,2422.7,2422.6,0.82502]
[1750749012120,2.95389,2422.7,2422.5,4.03284]
[1750749012617,0.82506,2422.6,2422.3,0.8251]
[1750749012813,2.16796,2422.6,2422.3,0.8251]
[1750749013121,0.82509,2422.4,2422.2,1.52184]
[1750749013316,0.82508,2422.5,2422.3,0.82512]
[1750749013617,1.3429,2422.6,2422.2,0.6967]
[1750749013820,1.3429,2422.6,2422.1,3.2078]
[1750749013821,0.82512,2422.3,2422.1,4.03297]
[1750749014017,2.16806,2422.2,2422.0,0.7203]
[1750749014318,2.84366,2422.2,2422.0,1.54551]
[1750749014716,2.84366,2422.2,2421.9,7.55524]
[1750749014919,2.84368,2422.2,2421.9,7.55524]
[1750749015118,2.0185,2422.2,2421.8,3.2078]